bitfinex-derivatives/quotes_SOLF0:USTF0_20250706
["timestamp","ask_amount","ask_price","bid_price","bid_amount"]
[1751768929001,4.89620025,147.14,147.13,9.15210959]
[1751768931596,13.718368,147.14,147.13,9.15210959]
[1751768931999,13.718368,147.14,147.13,6.7949]
[1751768939207,13.718368,147.14,147.13,9.15210959]
[1751768941104,4.89620025,147.14,147.13,9.15210959]
[1751768944415,4.89620025,147.14,147.13,2.35720959]
[1751768948516,4.89620025,147.14,147.13,9.15220959]
[1751768954624,4.85348939,147.14,147.13,9.15220959]
[1751768955221,4.85348939,147.14,147.13,6.795]
[1751768955925,4.85348939,147.14,147.13,9.15220959]
[1751768957731,2.3283,147.18,147.15,6.7939]
[1751768958029,13.70653988,147.17,147.15,9.15110959]
[1751768958231,4.85393299,147.16,147.15,9.15110959]
[1751768962330,4.85393299,147.16,147.15,6.7939]
[1751768962534,4.85393299,147.16,147.15,2.35720959]
[1751768963034,4.85393299,147.16,147.14,9.15150959]
[1751768963235,4.85393299,147.15,147.14,9.15150959]
[1751768966142,9.121,147.18,147.15,6.7939]
[1751768966434,13.7111396,147.17,147.15,6.7939]
[1751768966630,4.85429268,147.16,147.15,6.7939]
[1751768966832,4.85429268,147.16,147.15,9.15110959]
[1751768969542,6.7927,147.18,147.15,9.15110959]
[1751768969835,13.71030412,147.17,147.15,9.15110959]
[1751768970034,4.85395817,147.16,147.15,6.7939]
[1751768974443,13.70655169,147.16,147.15,6.7939]
[1751768975136,4.85395817,147.16,147.15,6.7939]
[1751768975634,6.7927,147.18,147.15,6.7939]
[1751768975831,13.70540508,147.17,147.15,6.7939]
[1751768976142,4.85231877,147.16,147.15,6.7939]
[1751768987848,4.86407393,147.16,147.15,6.7939]
[1751768991954,13.72945225,147.16,147.15,6.7939]
[1751768997356,4.86407393,147.16,147.15,6.7939]
[1751768997556,4.86407393,147.16,147.15,9.15664705]
[1751768998251,13.73819486,147.16,147.15,9.15664705]
[1751768998454,13.73819486,147.16,147.15,9.1564432]
[1751769000856,4.86407393,147.16,147.15,9.1564432]
[1751769001558,4.86407393,147.16,147.13,45.92]
[1751769001559,4.86407393,147.16,147.14,6.7943]
[1751769001760,4.86407393,147.15,147.14,2.3625432]
[1751769002656,4.86407393,147.15,147.14,9.1570432]
[1751769004763,107.34971494,147.19,147.16,6.7934]
[1751769004965,20.90281332,147.18,147.16,6.7934]
[1751769005157,13.70901266,147.17,147.16,6.7934]
[1751769005665,13.70901266,147.17,147.15,9.1563432]
[1751769005858,4.87432577,147.16,147.14,2.3625432]
[1751769006060,4.87432577,147.15,147.14,2.3625432]
[1751769007566,4.87432577,147.15,147.14,9.1568432]
[1751769007765,4.87432577,147.15,147.14,9.15708171]
[1751769007961,4.88571285,147.15,147.14,9.15708171]
[1751769010766,100.55721494,147.19,147.16,6.7933]
[1751769010966,13.72664511,147.18,147.16,9.15608171]
[1751769011166,13.72664511,147.17,147.16,9.15608171]
[1751769011867,13.72664511,147.17,147.16,9.15537688]
[1751769012266,4.88498337,147.17,147.16,9.15537688]
[1751769023773,4.88498337,147.17,147.16,6.7933]
[1751769025776,4.90300382,147.17,147.16,6.7933]
[1751769027675,4.90300382,147.17,147.16,9.15537688]
[1751769034880,9.15407688,147.2,147.16,9.15537688]
[1751769035074,20.95952832,147.19,147.17,6.7931]
[1751769035273,13.75103221,147.18,147.17,6.7931]
[1751769035479,13.75115601,147.18,147.17,6.7931]
[1751769043187,16.14381106,147.18,147.16,9.15547688]
[1751769043381,13.75115601,147.17,147.16,9.15547688]
[1751769044488,4.90293505,147.17,147.16,9.15547688]
[1751769044683,13.78256561,147.17,147.16,9.15547688]
[1751769047489,13.78256561,147.17,147.16,2.36207688]
[1751769048391,13.78256561,147.17,147.16,9.15567688]
[1751769048591,13.78256561,147.17,147.16,9.15579367]
[1751769060702,13.78256561,147.17,147.16,2.36219367]
[1751769060907,13.78256561,147.17,147.14,45.9]
[1751769061212,13.78256561,147.16,147.14,45.9]
[1751769061404,13.78256561,147.15,147.14,52.6943]
[1751769062303,13.78256561,147.15,147.14,45.9]
[1751769062507,13.78256561,147.15,147.14,48.26311342]
[1751769062712,4.90293505,147.15,147.14,48.26311342]
[1751769063103,4.90293505,147.15,147.14,55.05761342]
[1751769069812,9.54536086,147.19,147.14,55.05761342]
[1751769069813,9.54536086,147.2,147.17,6.7928]
[1751769070009,16.03292574,147.19,147.18,2.36311342]
[1751769070613,16.03292574,147.19,147.17,9.15591342]
[1751769070910,11.23877551,147.18,147.17,9.15591342]
[1751769072412,16.05875628,147.18,147.17,9.15591342]
[1751769077912,8.85228117,147.18,147.17,9.15591342]
[1751769078119,16.08742092,147.18,147.17,9.15591342]
[1751769081723,20.94720581,147.18,147.17,9.15591342]
[1751769083520,16.10288343,147.18,147.17,2.36311342]
[1751769083826,13.71206606,147.18,147.17,2.36311342]
[1751769091832,13.71206606,147.18,147.17,9.15621342]
[1751769093331,13.71206606,147.18,147.17,6.7931]
[1751769093531,13.71206606,147.18,147.17,9.15621342]
[1751769097134,8.85228117,147.18,147.17,9.15621342]
[1751769097336,13.72361853,147.18,147.17,9.15621342]
[1751769109248,8.85228117,147.18,147.17,9.15621342]
[1751769109448,13.72321029,147.18,147.17,9.15621342]
[1751769122864,4.87092912,147.18,147.17,9.15621342]
[1751769123266,4.6944,147.21,147.18,6.7924]
[1751769123467,13.75678549,147.2,147.18,203.43551342]
[1751769123667,8.89081285,147.19,147.18,203.43551342]
[1751769124868,8.89081285,147.19,147.18,196.64311342]
[1751769126669,8.89081285,147.19,147.18,203.43581342]
[1751769129671,8.89081285,147.19,147.18,201.0727]
[1751769129871,8.89081285,147.19,147.18,203.43581342]
[1751769132075,8.89198149,147.19,147.18,203.43581342]
[1751769132573,8.89198149,147.19,147.18,201.0727]
[1751769135080,13.76279951,147.19,147.18,201.0727]
[1751769135277,18.63027402,147.19,147.18,201.0727]
[1751769136177,13.76279951,147.19,147.18,201.0727]
[1751769138072,20.55499951,147.19,147.18,194.28]
[1751769140489,13.76279951,147.19,147.18,194.28]
[1751769141085,16.15824557,147.19,147.18,194.28]
[1751769141284,20.98896605,147.19,147.18,194.28]
[1751769142584,13.76279951,147.19,147.18,194.28]
[1751769162211,13.76279951,147.19,147.18,203.43425339]
[1751769163411,8.89198149,147.19,147.18,203.43425339]
[1751769163612,13.72305442,147.19,147.18,203.43425339]
[1751769165711,13.72305442,147.19,147.18,201.0727]
[1751769165907,13.72305442,147.19,147.18,203.43425339]
[1751769166513,13.7225739,147.19,147.18,203.43425339]
[1751769170510,13.7225739,147.19,147.18,196.64155339]
[1751769172708,13.71126372,147.19,147.18,196.64155339]
[1751769173212,13.71126178,147.19,147.18,196.64155339]
[1751769174315,13.71126178,147.19,147.18,203.43425339]
[1751769175915,13.71126178,147.19,147.18,201.0727]
[1751769182717,13.71126178,147.19,147.18,203.43425339]
[1751769183220,13.69774738,147.19,147.18,203.43425339]
[1751769184420,13.69774738,147.19,147.18,196.64155339]
[1751769184618,20.48994738,147.19,147.18,194.28]
[1751769184823,27.71342607,147.19,147.18,194.28]
[1751769185414,20.92122607,147.19,147.18,194.28]
[1751769188626,16.10194578,147.19,147.18,194.28]
[1751769189127,13.70877835,147.19,147.18,194.28]
[1751769189433,8.87846709,147.19,147.18,194.28]
[1751769191328,11.27130224,147.19,147.18,194.28]
[1751769192529,8.87846709,147.19,147.18,194.28]
[1751769193626,18.52357236,147.19,147.18,194.28]
[1751769193822,16.10018909,147.19,147.18,194.28]
[1751769194027,20.91608317,147.19,147.18,194.28]
[1751769196128,16.10018909,147.19,147.18,194.28]
[1751769196329,20.91554822,147.19,147.18,194.28]
[1751769197827,20.91539352,147.19,147.18,194.28]
[1751769198232,18.52288271,147.19,147.18,194.28]
[1751769200233,13.69367152,147.19,147.18,194.28]
[1751769212239,8.87846709,147.19,147.18,194.28]
[1751769212430,13.6864406,147.19,147.18,194.28]
[1751769212739,20.4786406,147.19,147.18,194.28]
[1751769222251,13.6864406,147.19,147.18,194.28]
[1751769224854,13.68780428,147.19,147.18,194.28]
[1751769227954,8.87846709,147.19,147.18,194.28]
[1751769228150,13.69970039,147.19,147.18,194.28]
[1751769228453,13.69991473,147.19,147.18,194.28]
[1751769237358,20.95927116,147.19,147.18,194.28]
[1751769239266,27.75147116,147.19,147.18,194.28]
[1751769240065,27.75147116,147.19,147.17,9.1548304]
[1751769240265,13.69374903,147.18,147.17,9.1548304]
[1751769242267,13.69374903,147.18,147.17,9.15478542]
[1751769245165,8.87846709,147.18,147.17,9.15478542]
[1751769245368,13.69304487,147.18,147.17,9.15478542]
[1751769245865,20.48574487,147.18,147.16,194.12]
[1751769246070,13.70285027,147.17,147.16,194.12]
[1751769246265,13.70285027,147.17,147.15,203.27578542]
[1751769246471,4.81457778,147.16,147.15,203.27578542]
[1751769250073,4.81457778,147.16,147.15,9.15578542]
[1751769250273,4.81457778,147.16,147.15,203.27578542]
[1751769255878,4.81457778,147.16,147.14,52.6144]
[1751769256081,2.36198542,147.17,147.15,194.12]
[1751769256282,13.64523201,147.16,147.15,194.12]
[1751769260890,20.43883201,147.16,147.15,194.12]
[1751769261990,20.43883201,147.16,147.14,54.97638542]
[1751769262286,6.7936,147.16,147.15,194.12]
[1751769262485,20.42365949,147.16,147.15,194.12]
[1751769264089,11.57702073,147.16,147.15,194.12]
[1751769264384,4.78342073,147.16,147.15,200.9141]
[1751769264588,4.78342073,147.16,147.15,203.27608542]
[1751769265393,9.53983705,147.21,147.15,196.48198542]
[1751769265592,20.75331181,147.2,147.17,2.36198542]
[1751769265891,13.56554058,147.19,147.17,203.27488542]
[1751769266087,13.56554058,147.18,147.17,203.27488542]
[1751769270198,4.72874512,147.18,147.17,203.27488542]
[1751769270689,13.56630438,147.18,147.17,203.27488542]
[1751769271793,4.72874512,147.18,147.17,203.27488542]
[1751769275401,13.59394225,147.18,147.17,203.27488542]
[1751769275696,4.72874512,147.18,147.17,203.27488542]
[1751769277302,18.68470055,147.22,147.18,6.7923]
[1751769277501,20.79359153,147.21,147.19,2.36198542]
[1751769277703,13.56250883,147.2,147.19,2.36198542]
[1751769278896,13.56250883,147.2,147.18,9.15428542]
[1751769279101,13.56250883,147.19,147.18,9.15428542]
[1751769281106,8.8836882,147.19,147.18,9.15428542]
[1751769281306,13.56253295,147.19,147.18,9.15428542]
[1751769281606,6.7906,147.23,147.19,6.7918]
[1751769281809,13.55135506,147.22,147.2,2.36198542]
[1751769282010,13.55135506,147.21,147.2,2.36198542]
[1751769282308,4.6780292,147.21,147.2,2.36198542]
[1751769286109,6.7909,147.22,147.2,2.36198542]
[1751769286913,6.7909,147.22,147.2,9.15368542]
[1751769291814,6.7909,147.22,147.2,6.7917]
[1751769293014,6.7909,147.22,147.2,9.15368542]
[1751769297707,6.7906,147.23,147.2,9.15368542]
[1751769297911,4.67660339,147.22,147.2,9.15368542]
[1751769298107,6.7906,147.23,147.2,9.15368542]
[1751769298313,4.67635086,147.22,147.2,9.15368542]
[1751769298514,9.52810055,147.26,147.21,2.36198542]
[1751769298816,13.55451693,147.25,147.22,2.36198542]
[1751769299018,4.67594413,147.24,147.22,9.15258542]
[1751769299221,2.36198542,147.26,147.22,9.15258542]
[1751769299416,13.55117512,147.25,147.22,9.15258542]
[1751769299621,4.67468978,147.24,147.22,9.15258542]
[1751769299820,2.36198542,147.26,147.22,9.15258542]
[1751769300024,13.55117512,147.25,147.22,9.15258542]
[1751769300224,4.67468978,147.24,147.22,9.15258542]
[1751769300419,6.7895,147.25,147.22,9.15258542]
[1751769300714,4.69661658,147.24,147.22,9.15258542]
[1751769300913,6.7895,147.25,147.17,239.92]
[1751769300914,6.7895,147.25,147.23,9.15228542]
[1751769301110,4.69661658,147.24,147.23,9.15228542]
[1751769301520,4.69661658,147.24,147.23,2.36198542]
[1751769303419,4.69546452,147.24,147.23,2.36198542]
[1751769305319,6.7895,147.25,147.23,2.36198542]
[1751769306818,4.7525,147.28,147.24,2.36198542]
[1751769307023,13.59748643,147.27,147.25,2.36198542]
[1751769307226,4.69478173,147.26,147.25,2.36198542]
[1751769308118,9.1369,147.28,147.25,2.36198542]
[1751769308319,13.59686718,147.27,147.25,2.36198542]
[1751769308519,9.1369,147.28,147.25,2.36198542]
[1751769308821,20.38413121,147.27,147.25,2.36198542]
[1751769309022,6.7886,147.27,147.25,2.36198542]
[1751769309228,6.7886,147.27,147.24,6.7895]
[1751769309423,6.7886,147.27,147.24,9.15148542]
[1751769309726,11.49878542,147.28,147.24,9.15148542]
[1751769309926,13.59569811,147.27,147.24,9.15148542]
[1751769310126,11.49878542,147.28,147.24,9.15148542]
[1751769310427,13.62989685,147.27,147.24,9.15148542]
[1751769310615,11.49878542,147.28,147.24,9.15148542]
[1751769310820,13.62802312,147.27,147.24,9.15148542]
[1751769311017,11.49878542,147.28,147.24,9.15148542]
[1751769311222,13.62885194,147.27,147.24,9.15148542]
[1751769311420,11.49878542,147.28,147.24,9.15148542]
[1751769311624,13.62683239,147.27,147.24,9.15148542]
[1751769311825,11.49878542,147.28,147.24,9.15148542]
[1751769312026,13.63591567,147.27,147.24,9.15148542]
[1751769312226,11.49878542,147.28,147.25,6.7894]
[1751769312427,13.63521392,147.27,147.25,6.7894]
[1751769312622,11.49878542,147.28,147.25,6.7894]
[1751769312826,13.63521392,147.27,147.25,6.7894]
[1751769313027,11.49878542,147.28,147.24,9.15158542]
[1751769313321,13.63663674,147.27,147.24,9.15158542]
[1751769313525,11.49878542,147.28,147.24,9.15158542]
[1751769313721,13.63498743,147.27,147.24,9.15158542]
[1751769313926,11.49878542,147.28,147.24,9.15158542]
[1751769314129,13.63498743,147.27,147.24,9.15158542]
[1751769314331,11.49878542,147.28,147.24,9.15158542]
[1751769314631,13.63523282,147.27,147.24,9.15158542]
[1751769314831,11.49878542,147.28,147.24,9.15158542]
[1751769315031,13.65093932,147.27,147.24,9.15158542]
[1751769315232,11.49878542,147.28,147.24,9.15158542]
[1751769315438,13.65013039,147.27,147.24,9.15158542]
[1751769315731,11.49878542,147.28,147.24,9.15158542]
[1751769315933,13.65013039,147.27,147.24,9.15158542]
[1751769316125,11.49878542,147.28,147.24,9.15158542]
[1751769316324,13.63849972,147.27,147.24,9.15158542]
[1751769316527,11.49878542,147.28,147.24,9.15158542]
[1751769316724,4.71359189,147.27,147.24,9.15158542]
[1751769316935,11.49878542,147.28,147.24,9.15158542]
[1751769317139,13.63849972,147.27,147.25,2.36198542]
[1751769317437,9.1368,147.28,147.25,2.36198542]
[1751769317635,13.6381245,147.27,147.25,2.36198542]
[1751769317835,9.1368,147.28,147.25,2.36198542]
[1751769318036,13.6381245,147.27,147.25,9.15138542]
[1751769318232,9.1368,147.28,147.25,9.15138542]
[1751769318535,4.71413516,147.27,147.25,9.15138542]
[1751769318738,9.1368,147.28,147.25,9.15138542]
[1751769319037,4.71413516,147.27,147.25,9.15138542]
[1751769319236,9.1368,147.28,147.25,9.15138542]
[1751769319435,13.638964,147.27,147.25,9.15138542]
[1751769319634,9.1368,147.28,147.25,9.15138542]
[1751769319936,13.638964,147.27,147.25,9.15138542]
[1751769320135,6.7883,147.28,147.25,9.15138542]
[1751769320436,13.63942035,147.27,147.25,9.15138542]
[1751769320635,6.7883,147.28,147.25,9.15138542]
[1751769320838,13.63907382,147.27,147.25,9.15138542]
[1751769321036,6.7883,147.28,147.25,9.15138542]
[1751769321239,4.72131968,147.27,147.25,9.15138542]
[1751769321438,6.7883,147.28,147.25,9.15138542]
[1751769321735,13.65504416,147.27,147.25,9.15138542]
[1751769321938,6.7883,147.28,147.25,9.15138542]
[1751769322136,13.65504416,147.27,147.25,9.15138542]
[1751769322339,6.7883,147.28,147.25,9.15138542]
[1751769322527,13.65656431,147.27,147.25,9.15138542]
[1751769322728,6.7883,147.28,147.25,9.15138542]
[1751769322927,13.65656431,147.27,147.25,9.15138542]
[1751769323226,6.7883,147.28,147.25,9.15138542]
[1751769323428,13.65773254,147.27,147.25,9.15138542]
[1751769323637,6.7883,147.28,147.25,9.15138542]
[1751769323833,13.65773254,147.27,147.25,9.15138542]
[1751769324133,6.7883,147.28,147.25,9.15138542]
[1751769324333,8.93662867,147.27,147.25,9.15138542]
[1751769324536,6.7883,147.28,147.25,9.15138542]
[1751769324735,13.65922158,147.27,147.25,9.15138542]
[1751769324936,6.7883,147.28,147.25,9.15138542]
[1751769325144,13.65891239,147.27,147.25,9.15138542]
[1751769325336,6.7883,147.28,147.25,9.15138542]
[1751769325537,13.66105611,147.27,147.25,9.15138542]
[1751769325737,6.7883,147.28,147.25,9.15138542]
[1751769326035,13.66105611,147.27,147.25,9.15138542]
[1751769326235,6.7883,147.28,147.25,9.15138542]
[1751769326440,13.66246081,147.27,147.25,9.15138542]
[1751769326628,4.7231844,147.26,147.25,9.15138542]
[1751769330537,4.72462267,147.26,147.25,9.15138542]
[1751769331043,4.72462267,147.26,147.25,2.36198542]
[1751769331443,4.72462267,147.26,147.24,2.36198542]
[1751769331744,4.72503455,147.25,147.23,2.36198542]
[1751769331941,6.7894,147.26,147.21,45.78]
[1751769332140,4.72516929,147.25,147.22,9.15248542]
[1751769332338,2.36198542,147.27,147.22,9.15248542]
[1751769332539,20.46625946,147.26,147.22,2.36198542]
[1751769332835,4.72564233,147.25,147.23,6.7904]
[1751769333036,6.7893,147.26,147.23,6.7904]
[1751769333239,4.72595304,147.25,147.23,6.7904]
[1751769333539,6.7895,147.25,147.23,6.7904]
[1751769333740,2.36198542,147.25,147.21,48.14198542]
[1751769334041,16.05323943,147.24,147.21,45.78]
[1751769334244,4.73790993,147.23,147.21,45.78]
[1751769334438,2.36198542,147.25,147.21,52.571]
[1751769334641,13.69296878,147.24,147.21,52.571]
[1751769334843,4.73860995,147.23,147.2,2.36198542]
[1751769335042,4.73860995,147.23,147.2,9.15368542]
[1751769335043,6.7908,147.23,147.2,9.15368542]
[1751769336542,2.36198542,147.23,147.19,2.36198542]
[1751769336748,13.65416669,147.22,147.19,2.36198542]
[1751769337050,11.48795355,147.21,147.19,2.36198542]
[1751769337344,6.7914,147.21,147.19,2.36198542]
[1751769342943,6.7914,147.21,147.18,6.7924]
[1751769343140,4.66083606,147.2,147.17,45.78]
[1751769343444,57.67440055,147.24,147.12,649.92972207]
[1751769343445,2.36198542,147.18,147.15,2.36198542]
[1751769343745,6.7932,147.17,147.15,9.15608542]
[1751769345847,6.7932,147.17,147.14,9.15628542]
[1751769348951,6.7937,147.16,147.14,2.36198542]
[1751769350857,6.7937,147.16,147.13,54.93668542]
[1751769353656,6.7937,147.16,147.13,52.5747]
[1751769353852,6.7937,147.16,147.13,54.93668542]
[1751769354757,6.7942,147.15,147.13,48.14198542]
[1751769355559,6.7942,147.15,147.13,45.78]
[1751769357060,6.7942,147.15,147.13,48.14198542]
[1751769359459,6.7942,147.15,147.13,45.78]
[1751769359660,6.7942,147.15,147.13,48.14198542]
[1751769360659,6.7942,147.15,147.13,54.93688542]
[1751769360860,2.2171,147.19,147.14,2.36198542]
[1751769361060,4.57908542,147.19,147.15,2.36198542]
[1751769361561,6.7934,147.17,147.15,2.36198542]
[1751769363061,6.7929,147.18,147.15,9.15588542]
[1751769363255,6.7929,147.18,147.16,2.36198542]
[1751769364556,6.7931,147.17,147.16,2.36198542]
[1751769364762,6.7931,147.17,147.15,2.36198542]
[1751769365160,6.7931,147.17,147.14,2.36198542]
[1751769365462,6.7931,147.17,147.15,2.36198542]
[1751769368959,2.36198542,147.19,147.15,2.36198542]
[1751769369465,6.793,147.18,147.16,2.36198542]
[1751769379578,6.793,147.18,147.15,9.15598542]
[1751769379881,6.7932,147.17,147.15,2.36198542]
[1751769387486,6.7932,147.17,147.14,6.7945]
[1751769387780,6.7932,147.17,147.15,2.36198542]
[1751769388785,6.7936,147.16,147.15,2.36198542]
[1751769388987,4.6156275,147.16,147.14,2.36198542]
[1751769389188,2.36198542,147.18,147.14,2.36198542]
[1751769389379,22.70081965,147.17,147.14,9.15648542]
[1751769389685,13.49140829,147.16,147.14,9.15648542]
[1751769389884,6.7934,147.17,147.14,9.15648542]
[1751769390085,13.49086599,147.16,147.14,9.15648542]
[1751769390276,6.7934,147.17,147.14,9.15648542]
[1751769390475,13.46884973,147.16,147.14,9.15648542]
[1751769390779,6.7934,147.17,147.14,9.15648542]
[1751769390974,13.46884972,147.16,147.14,9.15648542]
[1751769391183,6.7937,147.16,147.14,9.15648542]
[1751769391379,2.36198542,147.17,147.13,48.14198542]
[1751769391575,13.46864349,147.16,147.13,48.14198542]
[1751769391781,2.36198542,147.17,147.13,48.14198542]
[1751769391985,13.46864349,147.16,147.13,48.14198542]
[1751769392187,2.36198542,147.17,147.13,48.14198542]
[1751769392385,13.45022033,147.16,147.13,48.14198542]
[1751769392580,2.36198542,147.17,147.13,48.14198542]
[1751769392886,13.45022033,147.16,147.13,48.14198542]
[1751769393085,2.36198542,147.17,147.13,48.14198542]
[1751769393282,6.7943,147.15,147.13,48.14198542]
[1751769394588,6.7943,147.15,147.13,45.78]
[1751769398290,6.7943,147.15,147.12,6.7953]
[1751769398489,6.7946,147.14,147.12,6.7953]
[1751769399491,6.7946,147.14,147.12,9.15728542]
[1751769401392,6.7946,147.14,147.12,2.36198542]
[1751769402195,6.795,147.13,147.11,2.36198542]
[1751769402391,6.795,147.13,147.11,194.22]
[1751769403991,6.795,147.13,147.11,203.37788542]
[1751769404499,6.795,147.13,147.11,9.15788542]
[1751769404690,6.795,147.13,147.11,203.37788542]
[1751769404997,6.795,147.13,147.11,9.15788542]
[1751769405194,6.7955,147.12,147.1,271.89072256]
[1751769405797,6.7955,147.12,147.1,269.52873714]
[1751769406490,6.7955,147.12,147.1,276.32513714]
[1751769406694,6.7955,147.12,147.1,278.68712256]
[1751769406893,6.7951,147.13,147.1,278.68712256]
[1751769407998,6.7951,147.13,147.1,84.46712256]
[1751769408199,6.7955,147.12,147.11,194.24]
[1751769408402,6.7955,147.12,147.1,84.46712256]
[1751769408698,6.7955,147.12,147.11,194.24]
[1751769410097,6.7955,147.12,147.1,84.46712256]
[1751769410298,6.7955,147.12,147.11,194.24]
[1751769412396,9.15728542,147.13,147.11,194.24]
[1751769412596,6.7953,147.13,147.11,194.24]
[1751769413102,6.7953,147.13,147.11,201.0359]
[1751769415198,9.52810055,147.18,147.11,194.24]
[1751769415405,2.36198542,147.2,147.16,2.36198542]
[1751769415700,18.1335835,147.19,147.16,194.24]
[1751769415891,20.16307408,147.18,147.16,194.24]
[1751769416092,6.793,147.18,147.16,194.24]
[1751769416502,6.7931,147.17,147.16,194.24]
[1751769416703,17.95643889,147.17,147.16,194.24]
[1751769416900,17.95643889,147.17,147.13,194.62]
[1751769416901,11.16333889,147.17,147.13,194.62]
[1751769417199,15.7307789,147.16,147.12,9.15718542]
[1751769417496,2.36198542,147.16,147.13,194.68]
[1751769417698,4.56770795,147.15,147.13,194.68]
[1751769417899,6.7945,147.15,147.13,194.68]
[1751769419004,6.7945,147.15,147.13,201.4749]
[1751769419697,6.7945,147.15,147.13,203.83688542]
[1751769419898,6.7945,147.15,147.13,197.04198542]
[1751769420999,6.7945,147.15,147.13,194.68]
[1751769421301,6.7946,147.14,147.12,203.81728542]
[1751769421699,6.7942,147.15,147.12,203.81728542]
[1751769424006,6.7942,147.15,147.13,6.795]
[1751769424206,2.36198542,147.17,147.13,6.795]
[1751769424408,6.9724,147.18,147.13,9.15698542]
[1751769424409,13.41866046,147.16,147.13,9.15698542]
[1751769424603,9.33438542,147.18,147.13,9.15698542]
[1751769424904,6.7939,147.16,147.13,9.15698542]
[1751769430812,6.7939,147.16,147.13,6.795]
[1751769433214,6.7942,147.15,147.13,9.15698542]
[1751769439015,6.7938,147.16,147.13,9.15698542]
[1751769439818,6.7941,147.15,147.13,9.15698542]
[1751769440523,6.7941,147.15,147.13,6.795]
[1751769440819,2.36198542,147.15,147.11,2.36198542]
[1751769441314,6.95956426,147.14,147.09,48.0842]
[1751769441513,2.36198542,147.12,147.09,45.84]
[1751769441912,6.796,147.11,147.09,52.6367]
[1751769445722,9.15768542,147.12,147.09,52.6367]
[1751769446724,9.15768542,147.12,147.09,247.2967]
[1751769448627,6.7957,147.12,147.09,247.2967]
[1751769451530,9.15768542,147.12,147.09,247.2967]
[1751769454226,9.15768542,147.12,147.09,52.6367]
[1751769454429,6.7961,147.11,147.1,194.62]
[1751769456626,6.7961,147.11,147.09,45.84]
[1751769456932,6.7961,147.11,147.1,194.62]
[1751769459735,6.7961,147.11,147.09,45.84]
[1751769459935,6.7961,147.11,147.1,194.6]
[1751769465842,9.15808542,147.11,147.09,52.6368]
[1751769466141,9.15808542,147.11,147.1,194.58]
[1751769469634,6.7961,147.11,147.1,194.58]
[1751769470539,6.7949,147.14,147.11,6.7956]
[1751769470745,2.36198542,147.14,147.12,194.54]
[1751769471643,6.795,147.13,147.12,194.54]
[1751769478256,9.15698542,147.13,147.12,194.54]
[1751769479354,13.72817518,147.13,147.12,194.54]
[1751769479660,22.5528909,147.13,147.12,194.54]
[1751769482664,6.7958,147.12,147.09,247.1566]
[1751769482962,9.15778542,147.12,147.09,247.1566]
[1751769484956,9.15778542,147.12,147.09,52.6366]
[1751769485162,9.15778542,147.12,147.1,194.5]
[1751769485364,4.5897829,147.11,147.1,194.5]
[1751769487765,4.5897829,147.11,147.1,201.2964]
[1751769491169,6.7955,147.12,147.1,201.2964]
[1751769492872,4.93743306,147.11,147.1,201.2964]
[1751769493470,4.93743306,147.11,147.1,194.5]
[1751769494574,13.77626934,147.11,147.1,194.5]
[1751769495673,13.77626934,147.11,147.1,201.2964]
[1751769496374,13.77626934,147.11,147.1,194.5]
[1751769496678,13.77592243,147.11,147.1,194.5]
[1751769497474,11.73298615,147.11,147.1,194.5]
[1751769497680,16.11499594,147.11,147.1,194.4]
[1751769499082,22.91089594,147.11,147.1,194.4]
[1751769499580,6.7965,147.1,147.08,194.42]
[1751769499776,4.93708615,147.09,147.07,52.7375]
[1751769499980,9.15848542,147.1,147.08,194.44]
[1751769500174,4.88079908,147.09,147.08,194.44]
[1751769502884,4.88079908,147.09,147.08,201.2373]
[1751769505681,4.88079908,147.09,147.08,194.44]
[1751769509391,4.88079908,147.09,147.08,194.42]
[1751769509893,4.88079908,147.09,147.07,55.09958542]
[1751769510093,6.7965,147.1,147.08,194.4]
[1751769510392,4.8468541,147.09,147.08,194.4]
[1751769511796,6.7965,147.1,147.08,194.4]
[1751769511992,4.84644582,147.09,147.08,194.4]
[1751769512295,4.84624343,147.09,147.08,194.4]
[1751769521502,4.84624343,147.09,147.08,201.1973]
[1751769529705,9.15818542,147.11,147.08,201.1973]
[1751769529910,21.57236368,147.1,147.08,201.1973]
[1751769530212,7.56706616,147.09,147.08,201.1973]
[1751769531214,7.56706616,147.09,147.08,6.7973]
[1751769531414,12.82239583,147.09,147.08,194.32]
[1751769535716,4.79439281,147.09,147.08,194.32]
[1751769535916,12.82848225,147.09,147.08,194.32]
[1751769536511,12.82848225,147.09,147.08,201.1173]